bitfinex-derivatives/quotes_ETHF0:USTF0_20240930
["timestamp","ask_amount","ask_price","bid_price","bid_amount"]
[1727672902328,1.1,2635.7,2635.2,0.4073]
[1727672902531,1.1,2635.7,2635.3,0.37944]
[1727672902829,1.1,2635.6,2635.2,0.37945]
[1727672903034,1.1,2635.6,2635.1,1.1]
[1727672903324,1.1,2635.6,2635.2,0.37945]
[1727672903533,1.1,2635.6,2635.1,1.47946]
[1727672903728,1.1,2635.6,2635.1,1.1]
[1727672903920,1.1,2635.6,2635.2,0.37945]
[1727672904728,3.2078,2635.5,2635.4,1.1]
[1727672904927,3.2078,2635.9,2635.8,0.37937]
[1727672905431,3.2078,2635.9,2635.8,1.47937]
[1727672905618,8.1014,2635.9,2635.1,4.42500609]
[1727672905818,1.1,2635.5,2635.3,0.37943]
[1727672906025,1.1,2635.5,2635.1,0.4071]
[1727672906220,0.3827,2635.8,2635.2,1.1]
[1727672906526,0.4012,2635.7,2635.5,0.37941]
[1727672906721,4.3078,2635.6,2635.3,0.37943]
[1727672906920,4.3078,2635.6,2635.0,0.37947]
[1727672906921,1.1,2635.4,2635.0,0.37947]
[1727672907124,3.2078,2635.1,2634.8,0.3795]
[1727672907321,3.2078,2635.1,2634.5,4.89443609]
[1727672907322,1.5012,2635.0,2634.5,1.5071]
[1727672907542,4.3078,2634.8,2634.6,0.37953]
[1727672908027,4.3078,2634.8,2634.3,1.32424]
[1727672908028,4.3078,2634.8,2634.3,0.37957]
[1727672908326,0.4012,2635.0,2634.3,0.37957]
[1727672908327,1.1,2634.4,2634.3,0.37957]
[1727672908723,1.4995,2634.4,2634.3,0.37957]
[1727672908933,1.4995,2634.4,2634.2,0.37959]
[1727672909226,1.4995,2634.4,2634.0,3.2078]
[1727672909418,4.3078,2634.2,2633.9,0.4071]
[1727672909618,3.2078,2634.2,2634.1,0.37961]
[1727672909818,3.2078,2634.2,2633.9,0.4071]
[1727672910025,3.2078,2634.2,2634.1,0.37961]
[1727672911029,3.2078,2634.2,2633.9,1.35621]
[1727672911030,2.7695,2634.4,2633.9,1.35621]
[1727672911234,2.7695,2634.4,2634.3,0.37958]
[1727672911726,2.7695,2634.4,2634.0,0.94904]
[1727672912125,2.7695,2634.4,2634.3,0.37958]
[1727672912326,0.3995,2634.4,2634.3,0.37958]
[1727672915042,3.9941,2634.7,2634.5,0.37955]
[1727672915043,4.9631,2634.7,2634.5,0.37955]
[1727672915231,4.5595,2634.7,2634.3,0.94895]
[1727672915433,4.5595,2634.7,2634.2,3.31899]
[1727672915638,4.5595,2634.7,2634.4,0.37956]
[1727672915935,4.5595,2634.7,2634.2,3.31899]
[1727672916535,4.5595,2634.7,2634.5,0.37955]
[1727672917437,4.5595,2634.7,2634.4,0.37956]
[1727672917625,4.5595,2634.7,2634.5,0.37955]
[1727672917833,4.5595,2634.7,2634.4,0.37956]
[1727672918033,3.5905,2634.7,2634.5,0.37954]
[1727672918635,3.5905,2634.7,2634.3,0.94897]
[1727672918931,3.5905,2634.7,2634.5,0.37955]
[1727672919932,0.3862,2635.0,2634.6,6.166]
[1727672920237,0.3862,2635.0,2634.5,0.94886]
[1727672920435,0.394,2634.9,2634.4,3.31892]
[1727672920740,3.2078,2634.8,2634.6,0.37953]
[1727672920943,3.2078,2634.8,2634.3,1.35076]
[1727672921139,0.3714,2634.7,2634.6,0.37954]
[1727672922047,0.3714,2634.7,2634.5,0.37954]
[1727672922243,0.3714,2634.7,2634.6,0.37954]
[1727672923144,0.3714,2634.7,2634.5,0.37954]
[1727672924149,0.3714,2634.7,2634.4,0.9489]
[1727672924445,0.3714,2634.7,2634.6,0.37954]
[1727672924633,0.3714,2634.7,2634.3,4.55856]
[1727672924833,3.5792,2634.7,2634.5,0.37955]
[1727672925046,3.5792,2634.7,2634.2,1.3368]
[1727672925248,3.5792,2634.7,2634.4,0.37955]
[1727672925432,2.37,2634.6,2634.4,0.37955]
[1727672925639,0.369,2634.5,2634.4,0.37955]
[1727672925833,0.369,2634.5,2634.2,0.949]
[1727672926038,0.3902,2634.4,2634.3,0.37958]
[1727672927441,0.76979,2634.4,2634.3,0.37958]
[1727672928537,0.3902,2634.4,2634.3,0.37958]
[1727672928942,0.369,2634.5,2634.4,0.37957]
[1727672929745,3.5792,2634.7,2634.6,0.37954]
[1727672930062,0.3714,2634.7,2634.6,0.37954]
[1727672930547,5.9509,2635.0,2634.9,0.3795]
[1727672930754,6.33038,2635.0,2634.9,0.3795]
[1727672930944,5.9509,2635.0,2634.9,0.3795]
[1727672931143,6.33038,2635.0,2634.9,0.3795]
[1727672932846,5.9509,2635.0,2634.9,0.3795]
[1727672933149,6.33038,2635.0,2634.9,0.3795]
[1727672933350,5.9509,2635.0,2634.9,0.3795]
[1727672934155,6.33038,2635.0,2634.9,0.3795]
[1727672934747,0.3731,2635.0,2634.9,0.3795]
[1727672935144,0.3731,2635.0,2634.9,0.785]
[1727672937053,3.58725,2635.3,2635.2,0.37945]
[1727672937450,0.37946,2635.2,2635.1,0.37946]
[1727672937855,2.74942,2635.5,2635.4,0.37943]
[1727672938056,2.74942,2635.5,2635.3,0.37943]
[1727672938057,0.37943,2635.4,2635.3,0.37943]
[1727672938649,2.74942,2635.5,2635.4,0.37943]
[1727672938859,0.37944,2635.4,2635.3,0.37944]
[1727672939050,0.3683,2635.4,2635.3,0.37944]
[1727672939255,0.74773,2635.4,2635.3,0.37944]
[1727672939651,0.3683,2635.4,2635.3,0.37944]
[1727672940263,4.15631,2635.6,2635.3,0.3678]
[1727672940264,3.2078,2635.6,2635.3,0.3678]
[1727672940461,3.2078,2635.6,2635.5,0.37941]
[1727672940959,3.2078,2635.6,2635.5,0.75921]
[1727672941457,3.5872,2635.6,2635.5,0.75921]
[1727672941645,3.2078,2635.6,2635.5,0.37941]
[1727672941957,3.5872,2635.6,2635.5,0.37941]
[1727672942752,3.5872,2635.6,2635.4,0.37942]
[1727672942753,0.37942,2635.5,2635.4,0.37942]
[1727672942956,0.37942,2635.5,2635.3,0.3678]
[1727672942957,0.37943,2635.4,2635.3,0.74723]
[1727672943151,0.37943,2635.4,2635.3,0.37943]
[1727672944056,0.37945,2635.3,2635.2,0.37944]
[1727672944252,0.37945,2635.3,2635.0,1.3167]
[1727672944253,0.37946,2635.2,2635.0,1.3167]
[1727672944455,7.70726,2635.3,2635.0,1.3167]
[1727672944660,6.75865,2635.3,2635.0,1.3167]
[1727672944959,0.37946,2635.2,2635.1,0.37946]
[1727672945954,4.38865,2635.3,2635.2,0.37945]
[1727672946160,4.38864,2635.3,2635.2,0.37945]
[1727672948561,1.32812,2635.2,2635.1,0.37945]
[1727672948768,0.37947,2635.2,2635.1,0.37945]
[1727672950265,4.38864,2635.3,2635.2,0.37945]
[1727672952263,0.37953,2634.8,2634.7,0.37951]
[1727672952468,5.95733,2634.8,2634.7,0.37951]
[1727672952673,5.95733,2634.8,2634.5,0.3858]
[1727672952881,2.74954,2634.6,2634.5,0.76534]
[1727672953374,2.37,2634.6,2634.3,0.39]
[1727672953680,2.74957,2634.4,2634.3,0.37958]
[1727672954175,2.74958,2634.4,2634.3,0.37958]
[1727672954482,2.37,2634.4,2634.3,0.37958]
[1727672955780,2.74957,2634.4,2634.3,0.37958]
[1727672955974,2.37,2634.4,2634.1,0.3858]
[1727672956174,2.74957,2634.4,2634.3,0.37958]
[1727672956976,2.37,2634.4,2634.3,0.37958]
[1727672957173,6.6158,2634.5,2634.4,0.37957]
[1727672957978,3.2078,2634.5,2634.4,0.37957]
[1727672958183,3.2078,2634.5,2634.4,0.77627]
[1727672960888,3.58735,2634.5,2634.4,0.37957]
[1727672961084,3.58735,2634.5,2634.1,1.33483]
[1727672961085,3.2078,2634.5,2634.1,1.33483]
[1727672961272,0.37957,2634.4,2634.2,0.3796]
[1727672961472,0.37957,2634.4,2634.3,0.37958]
[1727672961678,3.2078,2634.5,2634.2,0.3796]
[1727672961985,3.58736,2634.5,2634.4,0.37957]
[1727672962284,0.37957,2634.4,2634.3,0.37957]
[1727672963279,3.58737,2634.5,2634.2,0.949]
[1727672963479,0.37957,2634.4,2634.3,0.37958]
[1727672963875,3.58737,2634.5,2634.1,1.33484]
[1727672964180,0.37958,2634.4,2634.3,0.37958]
[1727672964388,3.58737,2634.5,2634.4,0.37957]
[1727672965786,3.2078,2634.5,2634.2,0.94897]
[1727672966088,3.58736,2634.5,2634.4,0.37957]
[1727672966389,0.37957,2634.4,2634.3,0.37957]
[1727672966781,0.37957,2634.4,2634.2,0.94897]
[1727672966782,3.2078,2634.5,2634.2,0.94897]
[1727672967086,3.2078,2634.5,2634.4,0.37957]
[1727672967087,3.58736,2634.5,2634.4,0.37957]
[1727672967582,0.37954,2634.6,2634.3,0.94896]
[1727672967785,0.37956,2634.5,2634.4,0.37956]
[1727672967981,5.9817,2634.8,2634.7,0.37953]
[1727672967982,3.2078,2634.8,2634.7,0.37953]
[1727672969085,3.2078,2634.8,2634.7,4.17473]
[1727672971285,3.58731,2634.8,2634.7,0.37953]
[1727672971676,3.5751,2634.8,2634.5,1.74829]
[1727672971883,3.11984,2634.7,2634.6,0.37953]
[1727672972083,3.11984,2634.7,2634.5,1.74829]
[1727672972084,0.37954,2634.6,2634.5,0.77135]
[1727672972393,2.7403,2634.7,2634.2,1.71539]
[1727672972597,2.74958,2634.4,2634.3,0.37957]
[1727672974192,0.3796,2634.2,2634.1,0.7551]
[1727672974393,2.7496,2634.2,2634.1,0.3796]
[1727672974578,6.7358,2634.2,2634.1,0.3796]
[1727672976086,6.3562,2634.2,2634.1,0.3796]
[1727672976587,6.3284,2634.2,2634.1,0.3796]
[1727672976787,5.9488,2634.2,2634.1,0.3796]
[1727672977395,0.37962,2634.1,2634.0,0.37961]
[1727672978086,2.74962,2634.1,2634.0,0.37961]
[1727672979194,2.74961,2634.1,2634.0,0.37961]
[1727672980987,2.37,2634.1,2634.0,0.37961]
[1727672985800,2.74961,2634.1,2634.0,0.37961]
[1727672987909,2.37,2634.1,2634.0,0.37961]
[1727672988407,0.371,2634.2,2634.1,0.37961]
[1727672989005,0.78428,2634.4,2634.3,0.37958]
[1727672989505,0.3796,2634.3,2634.2,0.37959]
[1727672989700,2.7496,2634.3,2634.2,0.37959]
[1727672992106,3.1195,2634.3,2634.2,0.37959]
[1727672994311,3.11948,2634.3,2634.2,0.37959]
[1727672994709,2.7399,2634.3,2634.0,0.94906]
[1727672995010,2.7399,2634.3,2634.0,0.37962]
[1727672995011,5.95743,2634.1,2634.0,0.37962]
[1727672996218,2.74963,2634.1,2634.0,0.37962]
[1727673001717,2.37,2634.1,2634.0,0.37962]
[1727673003821,2.74961,2634.1,2634.0,0.37962]
[1727673004124,2.37,2634.1,2634.0,0.37962]
[1727673004420,0.3699,2634.3,2634.2,0.3796]
[1727673004605,3.2078,2634.4,2634.3,0.37958]
[1727673004809,3.2078,2634.4,2634.3,0.74828]
[1727673005007,3.2078,2634.4,2634.3,1.14018]
[1727673007811,3.2078,2634.4,2634.3,0.77148]
[1727673008012,3.9672,2634.4,2634.3,0.77148]
[1727673008210,4.34677,2634.4,2634.3,0.77148]
[1727673008513,0.37961,2634.2,2634.1,0.3796]
[1727673008911,0.75341,2634.2,2634.1,0.3796]
[1727673010421,0.3738,2634.2,2634.1,0.3796]
[1727673011419,0.7534,2634.2,2634.1,0.3796]
[1727673012017,0.3738,2634.2,2634.1,0.3796]
[1727673012208,0.7534,2634.2,2634.1,0.3796]
[1727673012417,0.3738,2634.2,2634.1,0.3796]
[1727673012817,0.7534,2634.2,2634.1,0.3796]
[1727673013423,3.1234,2634.2,2634.1,0.3796]
[1727673016333,2.7438,2634.2,2634.1,0.3796]
[1727673016528,3.1234,2634.2,2634.1,0.3796]
[1727673016821,2.7438,2634.2,2634.1,0.3796]
[1727673017324,4.03189053,2634.2,2634.1,1.37310127]
[1727673022230,0.90849053,2634.2,2634.1,1.37310127]
[1727673022525,0.90849053,2634.2,2634.0,2.34095127]
[1727673022824,3.5278,2634.3,2634.2,0.3796]
[1727673023023,4.43664622,2634.3,2634.2,0.3796]
[1727673024025,5.48064622,2634.3,2634.2,0.3796]
[1727673024629,5.10104622,2634.3,2634.2,0.3796]
[1727673025031,5.10104622,2634.3,2634.0,2.34095127]
[1727673025032,0.37961,2634.1,2634.0,1.37312127]
[1727673025331,6.48664622,2634.1,2633.9,0.99350127]
[1727673025625,1.30534622,2634.0,2633.5,0.99350127]
[1727673025821,2.74968,2633.6,2633.5,1.37320127]
[1727673026016,2.74968,2633.6,2633.4,1.49391832]
[1727673026017,0.3797,2633.5,2633.4,0.3797]
[1727673026327,0.7688,2633.5,2633.4,1.3704922]
[1727673026528,1.1664,2633.5,2633.4,1.3704922]
[1727673027536,1.5461,2633.5,2633.4,0.3797]
[1727673027726,1.1664,2633.5,2633.4,0.3797]
[1727673028027,1.1664,2633.5,2633.4,1.3704922]
[1727673028232,5.32347,2633.5,2633.3,1.3705122]
[1727673028532,2.74971,2633.4,2633.3,0.37972]
[1727673028728,3.65805865,2633.4,2633.3,0.37972]
[1727673030224,2.74971,2633.4,2633.3,0.37972]
[1727673031132,0.37973,2633.3,2633.2,0.37973]
[1727673031340,2.74973,2633.3,2633.2,0.37973]
[1727673031538,2.37,2633.3,2633.2,0.37973]
[1727673031835,2.74973,2633.3,2633.2,0.37973]
[1727673032534,2.37,2633.3,2633.2,0.37973]
[1727673033032,2.74973,2633.3,2633.2,0.37973]
[1727673033231,2.37,2633.3,2633.2,0.37973]
[1727673035241,2.74973,2633.3,2633.2,0.37973]
[1727673035439,2.37,2633.3,2633.2,0.37973]
[1727673037331,2.74973,2633.3,2633.2,0.37973]
[1727673037626,2.37,2633.3,2633.2,0.37973]
[1727673038227,2.74973,2633.3,2633.2,0.37973]
[1727673039135,2.37,2633.3,2633.1,0.3731]
[1727673039437,0.37974,2633.2,2633.1,0.37975]
[1727673039633,1.32917,2633.1,2633.0,0.37976]
[1727673039838,3.51317,2633.1,2633.0,0.37976]
[1727673040035,7.31077,2633.1,2633.0,0.37976]
[1727673040341,0.37981,2632.8,2632.7,0.37981]
[1727673040528,1.38781,2632.8,2632.7,0.37981]
[1727673041133,2.33733,2632.8,2632.7,0.37981]
[1727673041329,1.38781,2632.8,2632.7,0.37981]
[1727673041535,1.32938,2632.7,2632.6,0.37982]
[1727673041840,2.74984,2632.6,2632.5,0.37983]
[1727673042143,3.12984,2632.6,2632.5,0.37983]
[1727673043937,2.75,2632.6,2632.5,0.37983]
[1727673044128,3.12983,2632.6,2632.5,0.37983]
[1727673047040,2.75,2632.6,2632.5,0.37983]
[1727673047236,3.12983,2632.6,2632.5,0.37983]
[1727673047641,2.75,2632.6,2632.5,0.37983]
[1727673048142,3.12983,2632.6,2632.5,0.37983]
[1727673049037,2.75,2632.6,2632.5,0.37983]
[1727673049448,5.9578,2632.6,2632.5,0.37983]
[1727673050045,2.75,2632.6,2632.5,0.37983]
[1727673050237,5.9578,2632.6,2632.5,0.37983]
[1727673051438,6.9658,2632.6,2632.5,0.37983]
[1727673051735,5.9578,2632.6,2632.5,0.37983]
[1727673051938,6.9658,2632.6,2632.5,0.37983]
[1727673056049,7.34563,2632.6,2632.5,0.37983]
[1727673056445,6.9658,2632.6,2632.5,0.37983]
[1727673056745,7.34563,2632.6,2632.5,0.37983]
[1727673057641,6.9658,2632.6,2632.5,0.37983]
[1727673059455,5.5778,2632.6,2632.5,0.37983]
[1727673059644,6.5858,2632.6,2632.5,0.37983]
[1727673060153,5.5778,2632.6,2632.5,0.37983]
[1727673061445,6.5858,2632.6,2632.5,0.37983]
[1727673065762,5.3058,2632.6,2632.5,0.37983]
[1727673069152,5.2798,2632.6,2632.5,0.37983]
[1727673074261,2.072,2632.6,2632.5,0.37983]
[1727673077364,1.09,2632.6,2632.5,0.37983]
[1727673077666,2.072,2632.6,2632.5,0.37983]
[1727673079464,6.2585,2632.6,2632.3,0.94968]
[1727673079659,1.09,2632.4,2632.3,0.37987]
[1727673080066,1.4776,2632.4,2632.3,0.37987]
[1727673082058,0.37988,2632.3,2632.2,0.37987]
[1727673082261,0.3905,2632.3,2632.2,0.37987]
[1727673084275,1.29939092,2632.3,2632.2,0.37987]
[1727673085762,1.89089092,2632.3,2632.2,0.37987]
[1727673085968,2.98089092,2632.3,2632.2,1.14327]
[1727673087476,1.99889092,2632.3,2632.2,1.14327]
[1727673087670,1.99889092,2632.3,2632.2,2.1340622]
[1727673090469,1.99889092,2632.3,2632.2,1.14327]
[1727673090773,1.99889092,2632.3,2632.2,0.37987]
[1727673095673,1.09,2632.3,2632.2,0.37987]
[1727673098773,1.09,2632.3,2632.2,1.14287]
[1727673102271,3.2078,2632.5,2632.2,4.5622]
[1727673102471,3.2078,2632.5,2632.4,0.37986]
[1727673102774,5.20655749,2632.5,2632.4,0.37986]
[1727673103073,1.99875749,2632.5,2632.4,0.37986]
[1727673106384,1.99875749,2632.5,2632.4,1.3706522]
[1727673106978,1.99875749,2632.5,2632.4,0.37986]
[1727673107978,1.99875749,2632.5,2632.4,1.3706522]
[1727673108482,1.99875749,2632.5,2632.4,0.37986]
[1727673108685,1.99875749,2632.5,2632.4,1.3706522]
[1727673109892,1.09,2632.5,2632.4,1.3706522]
[1727673112583,1.09,2632.5,2632.4,5.1690522]
[1727673112991,1.09,2632.5,2632.4,4.17826]
[1727673114194,1.09,2632.5,2632.4,0.37986]
[1727673114378,0.7971,2632.8,2632.7,0.37981]
[1727673114585,2.8581,2632.8,2632.7,0.37981]
[1727673114793,2.8581,2632.8,2632.7,0.76351]
[1727673114993,1.8871,2632.8,2632.7,0.76351]
[1727673115990,0.7971,2632.8,2632.7,0.76351]
[1727673116197,1.8871,2632.8,2632.7,0.76351]
[1727673120894,0.37981,2632.7,2632.6,0.9907922]
[1727673121194,2.26691,2632.8,2632.7,0.37981]
[1727673121387,1.8871,2632.8,2632.7,0.37981]
[1727673121591,2.2669,2632.8,2632.7,0.37981]
[1727673122197,1.8871,2632.8,2632.7,0.37981]
[1727673122390,2.2669,2632.8,2632.7,0.37981]
[1727673123100,1.8871,2632.8,2632.7,0.37981]
[1727673123305,2.2669,2632.8,2632.7,0.37981]
[1727673125798,1.8871,2632.8,2632.7,0.37981]
[1727673143117,0.7971,2632.8,2632.7,0.37981]
[1727673143319,0.3772,2632.9,2632.8,0.3798]
[1727673143506,1.4672,2632.9,2632.8,0.3798]
[1727673143706,1.4672,2632.9,2632.8,0.7528]
[1727673148024,2.37574032,2632.9,2632.8,0.7528]
[1727673148822,2.37574032,2632.9,2632.8,0.3798]
[1727673153123,0.37981,2632.8,2632.7,0.3798]
[1727673153423,4.49615032,2632.8,2632.7,0.3798]
[1727673156828,4.11634032,2632.8,2632.7,0.3798]
[1727673157031,5.07134032,2632.8,2632.7,0.3798]
[1727673161231,4.11634032,2632.8,2632.7,0.3798]
[1727673161430,5.07134032,2632.8,2632.7,0.3798]
[1727673163430,5.45114032,2632.8,2632.7,0.3798]
[1727673168333,5.07134032,2632.8,2632.7,0.3798]
[1727673168630,5.45114032,2632.8,2632.7,0.3798]
[1727673169937,5.07134032,2632.8,2632.7,0.3798]
[1727673170628,4.11634032,2632.8,2632.7,0.3798]
[1727673171036,4.11634032,2632.8,2632.7,0.7792]
[1727673171429,0.90854032,2632.8,2632.7,4.5776]
[1727673171631,1.09,2632.8,2632.7,5.5684022]
[1727673173541,1.09,2632.8,2632.7,4.57761]
[1727673177341,1.99881243,2632.8,2632.7,4.57761]
[1727673180133,2.37861243,2632.8,2632.7,4.57761]
[1727673180334,1.99881243,2632.8,2632.7,5.5684022]
[1727673182834,2.37861243,2632.8,2632.7,5.5684022]
[1727673183038,1.99881243,2632.8,2632.7,5.5684022]
[1727673183348,2.37861243,2632.8,2632.7,5.5684022]
[1727673184547,2.37861243,2632.8,2632.7,0.37981]
[1727673184744,2.75231243,2632.8,2632.7,0.37981]
[1727673185447,1.4637,2632.8,2632.7,1.3706022]
[1727673185644,1.8435,2632.8,2632.7,1.3706022]
[1727673188549,1.4637,2632.8,2632.7,0.37981]
[1727673189049,1.8435,2632.8,2632.7,0.37981]
[1727673192453,2.75229525,2632.8,2632.7,0.37981]
[1727673195650,2.75229525,2632.8,2632.7,2.8018608]
[1727673196652,2.75229525,2632.8,2632.7,2.80221286]
[1727673200647,1.4637,2632.8,2632.7,2.80221286]
[1727673201254,1.4637,2632.8,2632.7,1.81142066]
[1727673201457,1.4637,2632.8,2632.7,1.81191381]
[1727673202154,1.8435,2632.8,2632.7,1.81191381]
[1727673202543,1.8435,2632.8,2632.7,0.37981]
[1727673210760,1.8435,2632.8,2632.7,3.30608114]
[1727673212256,2.75292503,2632.8,2632.7,3.30608114]
[1727673212561,2.37312503,2632.8,2632.7,3.30608114]
[1727673213464,2.75292503,2632.8,2632.7,3.30608114]
[1727673216370,2.75292503,2632.8,2632.7,3.30731708]
[1727673217253,2.37312503,2632.8,2632.7,1.81339876]
[1727673217562,2.37312503,2632.8,2632.7,1.37154761]
[1727673217962,2.75292503,2632.8,2632.7,1.37154761]
[1727673218266,2.37312503,2632.8,2632.7,1.37154761]
[1727673218457,2.37312503,2632.8,2632.7,2.80536731]
[1727673221367,2.37312503,2632.8,2632.7,2.80542605]
[1727673222454,2.37312503,2632.8,2632.7,1.37154761]
[1727673222760,2.37312503,2632.8,2632.7,2.80542471]
[1727673225777,2.37312503,2632.8,2632.7,1.8136871]
[1727673226564,2.37312503,2632.8,2632.7,1.8136466]
[1727673227470,1.99942503,2632.8,2632.7,1.8136466]
[1727673231470,1.99942503,2632.8,2632.7,1.81364188]
[1727673236478,1.99942503,2632.8,2632.7,1.81365415]
[1727673239180,0.90942503,2632.8,2632.7,1.81365415]
[1727673239670,1.99942503,2632.8,2632.7,1.81365415]
[1727673240674,1.99942503,2632.8,2632.7,2.80576209]
[1727673242280,1.99942503,2632.8,2632.7,1.81388381]
[1727673244276,1.99942503,2632.8,2632.7,3.30170124]
[1727673244580,1.99942503,2632.8,2632.7,1.86762743]
[1727673246278,1.99942503,2632.8,2632.7,0.37981]
[1727673251180,1.99942503,2632.8,2632.7,3.79767014]
[1727673252976,2.76072503,2632.8,2632.7,3.79767014]
[1727673253177,2.38092503,2632.8,2632.7,3.79767014]
[1727673253389,2.76072503,2632.8,2632.7,3.79767014]
[1727673253881,2.76072503,2632.8,2632.7,1.81390011]
[1727673254894,2.76072503,2632.8,2632.7,1.81397369]
[1727673257094,2.76072503,2632.8,2632.7,0.37981]
[1727673259883,2.38092503,2632.8,2632.7,0.37981]
[1727673260083,2.76072503,2632.8,2632.7,0.37981]
[1727673261192,6.55912503,2632.8,2632.7,0.37981]
[1727673264692,2.76072503,2632.8,2632.7,0.37981]
[1727673265090,6.55912503,2632.8,2632.7,0.37981]
[1727673266895,0.37981,2632.7,2632.6,1.32937]
[1727673267089,5.08763503,2632.7,2632.6,0.37981]
[1727673267995,4.70782503,2632.7,2632.6,0.37981]
[1727673271093,7.91562503,2632.7,2632.6,0.37981]
[1727673272699,8.29543503,2632.7,2632.6,0.37981]
[1727673273898,7.91562503,2632.7,2632.6,0.37981]
[1727673274207,8.29543503,2632.7,2632.6,0.37981]
[1727673277008,5.08763503,2632.7,2632.6,0.37981]
[1727673277208,8.29543503,2632.7,2632.6,0.37981]
[1727673281123,5.08763503,2632.7,2632.6,0.37981]
[1727673281321,8.29543503,2632.7,2632.6,0.37981]
[1727673282315,4.11722503,2632.7,2632.6,0.37981]
[1727673282520,6.15722503,2632.7,2632.6,0.37981]
[1727673282922,5.2478,2632.7,2632.6,0.37981]
[1727673283221,6.15650715,2632.7,2632.6,0.37981]
[1727673286326,6.53631715,2632.7,2632.6,0.37981]
[1727673287124,3.32851715,2632.7,2632.6,0.37981]
[1727673290423,0.37983,2632.6,2632.5,1.37192304]
[1727673290725,0.76493,2632.6,2632.5,0.37983]
[1727673290930,1.67381054,2632.6,2632.5,0.37983]
[1727673293124,4.88161054,2632.6,2632.5,0.37983]
[1727673293827,0.37984,2632.5,2632.4,1.76303304]
[1727673294012,1.84884,2632.5,2632.4,1.76303304]
[1727673294217,1.84884,2632.5,2632.4,0.99209304]
[1727673294417,1.84884,2632.5,2632.4,0.37986]
[1727673295816,0.37987,2632.3,2632.2,1.76947304]
[1727673296023,5.58677253,2632.3,2632.2,0.37988]
[1727673296222,5.59220253,2632.3,2632.0,1.32169]
[1727673296415,0.3799,2632.2,2632.1,0.37989]
[1727673296618,1.4699,2632.2,2632.1,0.37989]
[1727673297230,1.09,2632.2,2632.0,0.3719]
[1727673297426,0.3799,2632.1,2632.0,0.7518]
[1727673297627,0.7743,2632.1,2632.0,0.7518]
[1727673297825,0.37992,2632.0,2631.9,0.37992]
[1727673298131,5.44662,2632.0,2631.9,0.37992]
[1727673298520,5.44662,2632.0,2631.8,0.3719]
[1727673298521,0.37993,2631.9,2631.8,0.75183]
[1727673298725,5.0667,2632.0,2631.8,0.3719]
[1727673299025,5.44662,2632.0,2631.8,0.3719]
[1727673299230,5.44662,2632.0,2631.9,0.37993]
[1727673299931,5.0667,2632.0,2631.9,0.37993]
[1727673300326,6.355043,2632.0,2631.9,0.37993]
[1727673300532,6.355043,2632.0,2631.8,0.75183]
[1727673300834,5.44662,2632.0,2631.8,0.37993]
[1727673301034,4.17913,2631.9,2631.7,0.37994]
[1727673301242,1.09,2631.8,2631.7,0.37994]
[1727673303639,2.04,2631.8,2631.7,0.37994]
[1727673303836,2.41994,2631.8,2631.7,0.37994]
[1727673304037,2.04,2631.8,2631.7,0.37994]
[1727673304939,4.9267,2632.0,2631.9,0.37993]
[1727673305257,6.0167,2632.0,2631.9,0.37993]
[1727673305743,6.39662,2632.0,2631.9,0.37993]
[1727673306148,6.0167,2632.0,2631.9,0.37993]
[1727673306633,6.39662,2632.0,2631.9,0.37993]
[1727673307028,6.0167,2632.0,2631.9,0.37993]
[1727673307441,6.39662,2632.0,2631.9,0.37993]
[1727673310545,0.37993,2631.9,2631.8,1.15613]
[1727673310732,6.39662,2632.0,2631.9,0.37993]
[1727673311348,0.37993,2631.9,2631.8,1.15613]
[1727673311538,6.96651,2632.0,2631.8,1.15613]
[1727673311539,6.39663,2632.0,2631.9,0.37993]
[1727673313650,0.37993,2631.9,2631.8,1.15613]
[1727673314846,6.39663,2632.0,2631.9,0.37993]
[1727673315350,6.39563,2632.0,2631.9,0.37993]
[1727673318355,0.37993,2631.9,2631.8,1.15613]
[1727673323159,3.58773,2631.9,2631.8,1.15613]
[1727673324753,3.58773,2631.9,2631.8,0.77473]
[1727673327957,3.58773,2631.9,2631.8,0.37993]
[1727673328550,0.37995,2631.8,2631.7,0.37994]
[1727673328764,1.46995,2631.8,2631.7,0.37994]
[1727673332361,1.09,2631.8,2631.7,0.37994]
[1727673335664,4.1568,2631.9,2631.8,0.37994]
[1727673335869,5.2468,2631.9,2631.8,0.37994]
[1727673337767,5.62673,2631.9,2631.8,0.37994]
[1727673337963,5.2468,2631.9,2631.8,0.37994]
[1727673338669,5.62673,2631.9,2631.8,0.37994]
[1727673338968,5.2468,2631.9,2631.8,0.37994]
[1727673339471,5.62673,2631.9,2631.8,0.37994]
[1727673340079,4.2978,2631.9,2631.8,0.37994]
[1727673340367,4.2978,2631.9,2631.8,0.75454]
[1727673340677,4.67773,2631.9,2631.8,1.13384]
[1727673341362,5.58749004,2631.9,2631.8,1.13384]
[1727673342372,5.58749004,2631.9,2631.8,2.12593304]
[1727673346876,5.58749004,2631.9,2631.8,4.06359549]
[1727673347376,5.58749004,2631.9,2631.8,4.06357473]
[1727673348973,4.49749004,2631.9,2631.8,4.06357473]
[1727673349169,5.58749004,2631.9,2631.8,4.06357473]
[1727673351676,0.90976004,2631.9,2631.8,6.37543517]
[1727673351878,1.09,2632.1,2632.0,0.37992]
[1727673352072,2.00029406,2632.1,2632.0,3.31107043]
[1727673352277,2.00029406,2632.1,2632.0,5.62071517]
[1727673352479,2.00029406,2632.1,2632.0,7.10970388]
[1727673353177,2.00029406,2632.1,2632.0,3.31050388]
[1727673353480,2.00029406,2632.1,2632.0,7.10970388]
[1727673353678,3.2078,2632.3,2632.0,9.09577756]
[1727673353878,0.37986,2632.4,2632.1,1.82149517]